[Event "41st OBSenEM 2025"]
[Site "Berlin"]
[Date "2025.02.10"]
[Round "6.2"]
[White "Meister, Jakob"]
[Black "Ahlberg, Matthias"]
[Result "1-0"]
[Annotator "TA"]
[ECO "A07"]
[WhiteElo "2418"]
[BlackElo "2067"]
[PlyCount "71"]
[EventDate "2025.02.04"]
[EventType "swiss"]
[EventCountry "GER"]
[SourceTitle "playchess.com"]
[Source "ChessBase"]
[SourceQuality "1"]
[TimeControl "40/5400+30:1800+30"]

{[%evp 11,71,18,17,0,-7,-4,0,3,0,0,96,102,93,96,104,118,118,104,95,90,103,84,102,73,207,213,200,200,210,206,233,247,255,212,224,205,224,200,212,166,245,137,413,427,410,420,502,452,467,503,966,938,1038,876,994,994,1599,1584,1692,1491,29987,29986]} 1. Nf3 {[%emt 0:00:02]} c6 {[%emt 0:00:12]} 2. g3 {[%emt 0:01:13]} d5 {[%emt 0:00:03]} 3. Bg2 {[%emt 0:00:08]} Nf6 {[%emt 0:00:15]} 4. O-O {[%emt 0:00:09]} Bf5 {[%emt 0:00:25]} 5. d3 {[%emt 0:00:09]} h6 {[%emt 0:00:20]} 6. Nbd2 {[%emt 0:00:11]} e6 {[%emt 0:00:22]} 7. Rb1 {[%emt 0:00:38] A07: Réti Opening: New York and Capablanca Systems.} Be7 {[%emt 0:00:28]} 8. b4 {[%emt 0:00:33]} O-O {[%emt 0:01:31]} 9. c4 {[%emt 0:00:59] The position is equal.} Nbd7 {[%emt 0:03:23]} 10. b5 {[%emt 0:02:54]} a6 {[%emt 0:09:14]} (10... Rc8 $11) 11. bxc6 $16 {[%emt 0:01:14]} bxc6 {[%emt 0:00:10]} 12. Nd4 {[%emt 0:00:40]} Qc7 $146 {[%emt 0:02:02]} (12... Rc8 13. Nxf5 exf5 14. Bb2 Qc7 15. Qc2 Bd6 16. e3 Rb8 17. Rfc1 Rfc8 18. Bxf6 Rxb1 19. Qxb1 Nxf6 20. cxd5 {1-0 Gonzalez,J-Colon,S Barbera del Valles op 1995 (5)}) 13. Nxf5 {[%emt 0:01:04]} exf5 {[%emt 0:00:02]} 14. Qc2 {[%emt 0:01:05] [#] Hoping for cxd5.} Rac8 {[%emt 0:04:09]} 15. Nf3 {[%emt 0:01:21]} h5 {[%emt 0:04:28]} 16. Bd2 {[%emt 0:12:06]} Bd6 {[%emt 0:08:12]} 17. e3 {[%emt 0:02:19]} Ne5 {[%emt 0:03:01]} (17... Rfe8 $16) 18. Nxe5 $18 {[%emt 0:05:35]} Bxe5 {[%emt 0:00:16] [#]} 19. d4 $1 {[%emt 0:00:34]} Bd6 {[%emt 0:00:14]} 20. Qxf5 {[%emt 0:01:18]} Qe7 {[%emt 0:05:51]} 21. cxd5 {[%emt 0:05:16]} g6 {[%emt 0:01:13]} 22. Qd3 {[%emt 0:03:48]} cxd5 {[%emt 0:00:57]} 23. Rb6 $1 {[%emt 0:01:50] Prevents Rc6} (23. Qxa6 $6 Ra8 24. Qb7 Qe6 $16) 23... h4 {[%emt 0:02:43][%cal Bh5h4,Bh4g3][%mdl 32]} 24. Rxa6 {[%emt 0:01:25]} (24. gxh4 Bxh2+ 25. Kh1 Ne4 26. Kxh2 Qc7+ (26... Qxh4+ 27. Kg1 $16) 27. Kg1 Qxb6 28. Bxe4 dxe4 29. Qxe4 Rfe8 $17) (24. Qxa6 Ra8 25. Qb5 Rxa2) 24... Ne4 {[%emt 0:01:30]} 25. Be1 {[%emt 0:02:57]} Rc1 {[%emt 0:07:20]} (25... hxg3 {was called for.} 26. hxg3 Ra8) 26. f3 {[%emt 0:03:47]} (26. Qb3 $18 Rd8 27. Qxd5) 26... Nxg3 $2 {[%emt 0:01:44][%mdl 8192]} (26... Nf6 $16 27. gxh4 Rfc8) 27. hxg3 {[%emt 0:02:36]} hxg3 {[%emt 0:01:06][%cal Oe7h4]} 28. Bd2 {[%emt 0:00:07]} Rc4 {[%emt 0:02:47]} 29. Rb1 {[%emt 0:04:13]} Rfc8 {[%emt 0:01:11]} 30. f4 {[%emt 0:05:18]} Bb4 {[%emt 0:05:58]} (30... Qe6 $142 31. Ra5 Kg7 32. Rxd5 (32. Bxd5 Qh3 $18) 32... Rc2) 31. Bxd5 {[%emt 0:05:40]} Kg7 {[%emt 0:04:55]} 32. Bxc4 {[%emt 0:13:28]} Qh4 {[%emt 0:01:56]} 33. Qe2 {[%emt 0:00:08]} (33. Rxb4 $2 {leads to mate.} Qh2+ 34. Kf1 Qf2#) 33... Rh8 {[%emt 0:01:42]} 34. Bd5 {[%emt 0:00:49]} (34. Bxb4 $2 Qh1#) 34... Bxd2 {[%emt 0:05:21]} 35. Qxd2 {[%emt 0:00:30] White threatens Rb7 and mate.} Qg4 {[%emt 0:03:55]} 36. Ra7 {[%emt 0:22:26] Black got outplayed after the opening.   Weighted Error Value: White=0.12 (very precise) /Black=1.07  Loses game:     	---       	Black=1      Mistake:       	White=1     	Black=4      OK:         	White=11    	Black=5      Best:        	White=3     	Black=1} 1-0

[Event "41st OBSenEM 2025"]
[Site "Berlin"]
[Date "2025.02.10"]
[Round "6.3"]
[White "Heinig, Wolfram"]
[Black "Schubert, Hans Joachim"]
[Result "1-0"]
[Annotator "TA"]
[ECO "A80"]
[WhiteElo "2196"]
[BlackElo "2064"]
[PlyCount "91"]
[EventDate "2025.02.04"]
[EventType "swiss"]
[EventCountry "GER"]
[SourceTitle "playchess.com"]
[Source "ChessBase"]
[SourceQuality "1"]
[TimeControl "40/5400+30:1800+30"]

{[%evp 9,91,107,88,97,91,82,78,89,129,121,191,190,185,190,164,79,69,55,47,51,58,57,115,132,159,160,384,399,393,397,388,397,400,407,537,524,562,506,1101,1004,1322,2055,2138,1951,2086,2063,12836,1920,2463,2394,1563,706,29968,29969,29988,991,29991,29992,29995,29980,29977,29961,6383,1216,1029,857,29967,29969,29970,29971,29975,29977,29977,29979,29978,29978,29978,29979,29985,29986,29995,29996,29997,29998]} 1. d4 {[%emt 0:00:04]} f5 {[%emt 0:00:03]} 2. Bg5 {[%emt 0:00:28]} c5 {[%emt 0:00:12]} 3. dxc5 {[%emt 0:03:00]} Qa5+ {[%emt 0:00:21]} 4. Nc3 {[%emt 0:01:09]} Qxc5 {[%emt 0:00:14]} 5. e4 {[%emt 0:01:34]} fxe4 {[%emt 0:02:22]} 6. Nxe4 {[%emt 0:00:38] A80: Dutch Defence: Unusual White second moves.} Qb4+ {[%emt 0:00:35]} 7. Nd2 {[%emt 0:00:18] White is much more active. The black bishops are passive.} Nc6 {[%emt 0:04:02]} 8. Ngf3 {[%emt 0:02:41] White is better.} h6 $146 {[%emt 0:00:46]} (8... Qxb2 9. Bd3 Nb4 10. O-O Nxd3 11. cxd3 Nf6 12. Nc4 Qc3 13. Re1 e6 14. a3 b5 {1-0 Kierzek,M (2228)-Schubert,H (2064) GER-ch Seniors 65 32nd 2020 (1)}) 9. Be3 {[%emt 0:04:03]} Nf6 {[%emt 0:01:22]} (9... e6 $16) 10. Bd3 $18 {[%emt 0:04:44]} e5 {[%emt 0:06:25][%cal Od7d5]} 11. Bg6+ {[%emt 0:02:46]} Kd8 {[%emt 0:00:01][%cal Ob4g4] [#]} 12. O-O {[%emt 0:06:30]} (12. c4 $1 $18) 12... Qg4 $16 {[%emt 0:01:03]} 13. Bf7 {[%emt 0:11:35]} d5 {[%emt 0:02:08] Prevents Nc4.} 14. c3 {[%emt 0:09:56] A sharp opening} Bd6 {[%emt 0:05:55]} 15. Nb3 {[%emt 0:08:57]} Ne7 {[%emt 0:04:51] White now steadily converts the win.} ({Better is} 15... e4 $14 16. Bxd5 exf3 17. Bxf3 Qd7) 16. Bc5 {[%emt 0:03:39]} Qd7 {[%emt 0:10:31]} 17. Re1 {[%emt 0:01:56]} Rf8 $2 {[%emt 0:04:55]} (17... e4 $16) 18. Bxd6 $18 {[%emt 0:02:19]} (18. Nxe5 Bxe5 19. Bxe7+ Kxe7 $17) 18... Qxd6 {[%emt 0:00:02]} 19. Nxe5 {[%emt 0:00:11]} Kc7 {[%emt 0:08:44]} 20. Nd4 {[%emt 0:03:06]} a6 {[%emt 0:00:35] Prevents Nb5+.} 21. c4 {[%emt 0:15:24][%cal Oc4c5,Bc3c4,Bc4d5][%mdl 32] [#]} Ne4 {[%emt 0:03:24]} 22. Bxd5 {[%emt 0:00:33]} Nxf2 {[%emt 0:01:17]} 23. Qd2 {[%emt 0:00:34]} Nxd5 {[%emt 0:03:33]} (23... Ng4 $142 24. Nxg4 Bxg4) 24. cxd5 {[%emt 0:00:16]} Bd7 {[%emt 0:10:06]} 25. Rac1+ {[%emt 0:04:03]} Kd8 {[%emt 0:04:18][%cal Bc7d8,Bd8d7,Bd7e8,Be8f8][%mdl 32]} 26. Nxd7 {[%emt 0:03:48]} Kxd7 {[%emt 0:02:24]} 27. Ne6 {[%emt 0:00:26] Threatening mate with Nc5+.} Rf6 {[%emt 0:03:12]} 28. Rc7+ {[%emt 0:01:36]} (28. Nxg7 Nh3+ 29. gxh3 Rg8 $14) (28. Nc5+ $142 Qxc5 29. Rxc5) 28... Ke8 {[%emt 0:00:03]} 29. Nxg7+ {[%emt 0:03:46]} Kf8 {[%emt 0:00:25]} 30. Rxb7 {[%emt 0:01:13]} (30. Re6 $142 Qxc7 31. Rxf6+ Kg8 32. Ne6 (32. Kxf2 Qxg7 33. Qxh6 Qxh6 $18) (32. Qxh6 Ng4 $17)) 30... Kg8 {[%emt 0:03:36]} 31. Ne8 {[%emt 0:02:05]} Nh3+ {[%emt 0:07:24]} 32. Kh1 {[%emt 0:00:49]} (32. gxh3 $142 Rg6+ 33. Kh1 Qd8 34. Ree7 Qxe8 35. Qc2 (35. Rxe8+ Rxe8 36. d6 Rf8 $18) 35... Qxe7 36. Qxg6+ (36. Rxe7 Rg7 $18) 36... Kf8 37. Qxh6+ (37. Rxe7 Kxe7 38. Qg7+ Kd6 $18) 37... Ke8 38. Qh8+ (38. Rxe7+ Kxe7 39. Qg7+ Kd6 $18) 38... Kf7 39. Qh7+ (39. Qxa8 Qxb7 40. Qxb7+ Kg6 41. d6 Kf6 42. Qe7+ Kf5 43. d7 Kg6 44. d8=Q a5 45. Qg8+ Kh6 46. Qgh7#) 39... Kf6 40. Rxe7 (40. Qxe7+ Kf5 41. Qe6+ Kf4 42. Rf7+ Kg5 43. Qf6+ Kh5 44. Rh7#) 40... Rc8 41. Re6+ Kg5 42. Qh6+ Kf5 43. Qf6#) 32... Rxe8 {[%emt 0:06:50]} 33. Rxe8+ {[%emt 0:00:03]} Rf8 {[%emt 0:00:02]} 34. Rxf8+ {[%emt 0:01:04]} Qxf8 {[%emt 0:00:01] KQR-KQN} 35. Qe2 {[%emt 0:00:43]} (35. gxh3 $2 Qf1#) 35... Ng5 {[%emt 0:02:05]} 36. Re7 {[%emt 0:00:58]} Qf4 {[%emt 0:02:24] Prevents d6.} 37. Qe1 {[%emt 0:00:58] and h4 should not be overlooked} (37. Qxa6 $2 {leads to mate.} Qc1+) 37... h5 {[%emt 0:00:51]} 38. h4 {[%emt 0:00:03] White mates.} Nf7 {[%emt 0:00:35]} 39. Re4 {[%emt 0:00:23]} Qf5 {[%emt 0:00:14]} 40. Re8+ {[%emt 0:00:21]} Kg7 {[%emt 0:00:04]} 41. Qg3+ {[%emt 0:30:29]} Kh6 {[%emt 0:31:17]} 42. Re6+ {[%emt 0:01:32]} Kh7 {[%emt 0:00:03]} 43. Qf3 {[%emt 0:00:20]} (43. Rxa6 Qf1+ 44. Kh2 Qxa6 $11) 43... Qb1+ {[%emt 0:01:04]} 44. Kh2 {[%emt 0:00:06]} Nh6 {[%emt 0:01:26]} 45. Qxh5 {[%emt 0:00:46]} ({Inferior is} 45. Rxa6 Ng4+ $17) 45... Qc1 {[%emt 0:00:06]} 46. Re7+ {[%emt 0:00:38] Weighted Error Value: White=0.85/Black=1.21  Loses game:     	---       	Black=1      Mistake:       	White=1     	Black=3      Inaccurate:     	---       	Black=3      OK:         	White=12    	Black=7      Best:        	White=1     	---} 1-0

[Event "41st OBSenEM 2025"]
[Site "Berlin"]
[Date "2025.02.10"]
[Round "6.4"]
[White "Matitschka, Heinz"]
[Black "Niehaus, Frank"]
[Result "0-1"]
[Annotator "NA RC"]
[ECO "A61"]
[WhiteElo "1943"]
[BlackElo "2109"]
[PlyCount "80"]
[EventDate "2025.02.04"]
[EventType "swiss"]
[EventCountry "GER"]
[SourceTitle "playchess.com"]
[Source "ChessBase"]
[SourceQuality "1"]
[TimeControl "40/5400+30:1800+30"]

1. d4 {[%emt 0:00:07]} Nf6 {[%emt 0:00:21]} 2. c4 {[%emt 0:00:15]} c5 {[%emt 0:00:32]} 3. d5 {[%emt 0:00:34]} e6 {[%emt 0:01:43]} 4. Nc3 {[%emt 0:00:42]} exd5 {[%emt 0:00:13]} 5. cxd5 {[%emt 0:00:09]} d6 {[%emt 0:00:12]} 6. Nf3 {[%emt 0:01:14]} g6 {[%emt 0:00:08]} 7. h3 {[%emt 0:00:38]} Bg7 {[%emt 0:00:23]} 8. Bf4 {[%emt 0:00:24]} O-O {[%emt 0:00:32]} 9. e3 {[%emt 0:00:39]} a6 {[%emt 0:01:00]} 10. a4 {[%emt 0:00:29]} Qc7 {[%emt 0:03:20]} 11. Bd3 {[%emt 0:03:25]} Nbd7 {[%emt 0:01:11]} 12. O-O {[%emt 0:01:42]} Ne5 {[%emt 0:05:34]} 13. Bc2 {[%emt 0:09:18]} Nxf3+ {[%emt 0:01:32]} 14. Qxf3 {[%emt 0:00:34]} Nd7 {[%emt 0:00:57]} 15. Qg3 {[%emt 0:15:07]} Ne5 {[%emt 0:02:33]} 16. Rfd1 {[%emt 0:03:05]} Bd7 {[%emt 0:04:17]} 17. Ne4 {[%emt 0:09:38]} Bf5 {[%emt 0:05:00]} 18. Bxe5 {[%emt 0:10:35]} Bxe5 {[%emt 0:00:10]} 19. f4 {[%emt 0:00:44]} Bxb2 {[%emt 0:06:20]} 20. Rab1 {[%emt 0:00:47]} Bg7 {[%emt 0:01:15]} 21. Nf6+ {[%emt 0:05:24]} Bxf6 {[%emt 0:01:37]} 22. Bxf5 {[%emt 0:00:05]} Rfe8 {[%emt 0:01:12]} 23. a5 {[%emt 0:02:25]} Bg7 {[%emt 0:02:14]} 24. Bc2 {[%emt 0:00:22]} Qxa5 {[%emt 0:04:04]} 25. Rxb7 {[%emt 0:00:31]} Qc3 {[%emt 0:01:52]} 26. Ba4 {[%emt 0:08:08]} Rxe3 {[%emt 0:04:28]} 27. Qg4 {[%emt 0:03:16]} Re1+ {[%emt 0:04:05]} 28. Kh2 {[%emt 0:03:32]} Rxd1 {[%emt 0:02:39]} 29. Qxd1 {[%emt 0:01:17]} Qf6 {[%emt 0:03:36]} 30. Qg4 {[%emt 0:03:50]} c4 {[%emt 0:02:21]} 31. Rc7 {[%emt 0:01:57]} c3 {[%emt 0:00:31]} 32. Rc8+ {[%emt 0:01:51]} Rxc8 {[%emt 0:00:06]} 33. Qxc8+ {[%emt 0:00:05]} Bf8 {[%emt 0:00:06]} 34. Qxa6 {[%emt 0:02:09]} Qxf4+ {[%emt 0:00:14]} 35. Kh1 {[%emt 0:02:19]} c2 {[%emt 0:00:42]} 36. Bxc2 {[%emt 0:00:50]} Qc1+ {[%emt 0:00:06]} 37. Kh2 {[%emt 0:00:16]} Qxc2 {[%emt 0:00:06]} 38. Qc6 {[%emt 0:01:07]} Qe4 {[%emt 0:00:53]} 39. Qa8 {[%emt 0:01:58]} h5 {[%emt 0:00:13]} 40. Qb7 {[%emt 0:00:35]} Bg7 {[%emt 0:01:18]} 0-1

[Event "41st OBSenEM 2025"]
[Site "Berlin"]
[Date "2025.02.11"]
[Round "7.1"]
[White "Niehaus, Frank"]
[Black "Federau, Juergen"]
[Result "1-0"]
[Annotator "TA"]
[ECO "B93"]
[WhiteElo "2109"]
[BlackElo "2124"]
[PlyCount "99"]
[EventDate "2025.02.04"]
[EventType "swiss"]
[EventCountry "GER"]
[SourceTitle "playchess.com"]
[Source "ChessBase"]
[SourceQuality "1"]
[TimeControl "40/5400+30:1800+30"]

{[%evp 24,99,0,4,31,-9,57,0,0,0,0,0,0,0,0,-40,-13,-139,-99,-96,-89,-100,-86,-68,-2,-66,-59,-51,-1,-2,0,9,3,4,0,4,83,81,96,90,86,87,103,73,82,87,97,94,115,117,129,88,90,92,96,93,176,178,184,184,181,181,591,660,642,612,689,687,570,521,685,644,726,719,966,864,712,632]} 1. e4 {[%emt 0:00:03]} c5 {[%emt 0:06:30]} 2. Nf3 {[%emt 0:00:19]} d6 {[%emt 0:00:30]} 3. d4 {[%emt 0:00:18]} cxd4 {[%emt 0:00:05]} 4. Nxd4 {[%emt 0:00:10]} Nf6 {[%emt 0:00:07]} 5. Nc3 {[%emt 0:00:13]} a6 {[%emt 0:00:09]} 6. f4 {[%emt 0:00:57]} e5 {[%emt 0:02:56]} 7. Nf3 {[%emt 0:00:23]} Nbd7 {[%emt 0:13:09]} 8. a4 {[%emt 0:00:57]} Qc7 {[%emt 0:00:53]} 9. Bd3 {[%emt 0:01:03]} Be7 {[%emt 0:00:09]} 10. O-O {[%emt 0:00:16]} exf4 {[%emt 0:08:47]} 11. Kh1 {[%emt 0:03:06]} Ne5 {[%emt 0:04:00]} 12. Bxf4 {[%emt 0:03:25]} O-O {[%emt 0:00:55]} 13. Qe1 {[%emt 0:09:19]} Re8 {[%emt 0:00:54] B93: Sicilian Najdorf: 6 f4.} 14. Be3 $146 {[%emt 0:17:05]} (14. Bg5 Be6 15. Nd4 Nfg4 16. Bxe7 Qxe7 17. Nf5 Qg5 18. Qg3 Bxf5 19. Rxf5 Qh6 20. Nd5 {1-0 Rodin,D (2376)-Sobina,P (2128) Voronezh Region-ch 2018 (1)}) 14... Nc4 {[%emt 0:18:55]} (14... Be6 $11) 15. Bxc4 {[%emt 0:09:43]} ({White should try} 15. Bd4 $1 $14 Nxb2 16. Nh4 Nxd3 17. cxd3) 15... Qxc4 $11 {[%emt 0:00:11] The position is equal.} 16. Rd1 {[%emt 0:00:40]} Be6 {[%emt 0:08:12][%cal Oa8c8]} (16... Nxe4 $2 17. Rd4 $18) 17. b3 {[%emt 0:03:13]} Qc7 {[%emt 0:00:54][%cal Od6d5]} 18. Bd4 {[%emt 0:03:07]} Rac8 {[%emt 0:09:55]} 19. Rc1 {[%emt 0:06:39]} Qc6 {[%emt 0:07:24]} (19... d5 $5) 20. e5 {[%emt 0:09:50]} (20. Ng5 $11) 20... dxe5 {[%emt 0:01:13]} 21. Nxe5 {[%emt 0:00:10]} Qc7 {[%emt 0:01:24]} 22. Qg3 {[%emt 0:09:28]} Red8 {[%emt 0:01:56]} 23. Ne2 {[%emt 0:01:43][%cal Bc3e2,Be2g3,Bg3f5][%mdl 32]} Ne8 {[%emt 0:08:13]} (23... b5 $15 24. axb5 axb5) 24. Nf3 {[%emt 0:05:48]} (24. Ba1 $11) 24... Qxg3 $15 {[%emt 0:00:12]} 25. Nxg3 {[%emt 0:00:54]} Bd5 {[%emt 0:01:54]} ({Better is} 25... b5 $15) 26. Bb6 $11 {[%emt 0:03:03] [#]} Rd6 {[%emt 0:01:46]} 27. Nf5 {[%emt 0:01:05][%csl LRd6,LRe7]} Re6 {[%emt 0:00:20]} (27... Rxb6 $2 28. Nxe7+ Kf8 29. Nxc8 $18) 28. N3d4 {[%emt 0:01:06] Excellent horsemanship.} Re5 {[%emt 0:00:50]} 29. Rce1 {[%emt 0:00:13]} Rxe1 {[%emt 0:00:38]} (29... Be4 $1 $11 {keeps the balance.}) 30. Rxe1 $16 {[%emt 0:00:05]} Bf8 {[%emt 0:00:13]} 31. c4 $36 {[%emt 0:00:31][%mdl 2048] White has a queen side majority White is on the roll.} Be6 {[%emt 0:01:29]} 32. Nxe6 {[%emt 0:00:30]} fxe6 {[%emt 0:00:04]} 33. Rxe6 {[%emt 0:00:06]} Kf7 {[%emt 0:00:12]} 34. Re1 {[%emt 0:00:27] White is much more active.} Rc6 {[%emt 0:00:30]} 35. Bd4 {[%emt 0:01:10]} Bb4 {[%emt 0:00:45]} 36. Rf1 {[%emt 0:00:10]} Nf6 {[%emt 0:00:25]} 37. Ne3 {[%emt 0:01:24]} Bc5 {[%emt 0:00:56] [#]} 38. Bxc5 {[%emt 0:01:14]} Rxc5 {[%emt 0:00:05][%mdl 4096] Endgame KRN-KRN. White is a pawn up.} 39. Nd5 {[%emt 0:00:45]} b5 {[%emt 0:00:27]} (39... Ke6 $16 {might work better.}) 40. Nxf6 $18 {[%emt 0:00:57]} gxf6 {[%emt 0:00:06]} 41. cxb5 {[%emt 0:30:12]} axb5 {[%emt 0:30:06] KR-KR. White is a pawn up.} 42. a5 {[%emt 0:02:58][%cal Ba4a5,Ba5a6][%mdl 32]} b4 $2 {[%emt 0:00:00]} (42... Ke6 {is tougher.} 43. h3 b4) 43. Ra1 {[%emt 0:00:00] White is clearly winning.} Rc7 {[%emt 0:00:00]} 44. a6 {[%emt 0:00:00] and a7 would now be decisive} Ra7 {[%emt 0:00:00]} 45. Kg1 {[%emt 0:00:00]} Ke6 {[%emt 0:00:00]} 46. Kf2 {[%emt 0:00:00]} Kd5 {[%emt 0:00:00]} 47. Ke3 {[%emt 0:00:00]} Kc5 {[%emt 0:00:00]} 48. Ke4 {[%emt 0:00:00]} Kb6 {[%emt 0:00:00]} 49. Kf5 {[%emt 0:00:00]} h5 {[%emt 0:00:00]} 50. Kxf6 {[%emt 0:00:00] Weighted Error Value: White=0.14 (very precise) /Black=0.41  Mistake:       	White=3     	Black=6      Inaccurate:     	White=3     	Black=1      OK:         	White=14    	Black=10     Best:        	White=4     	---} 1-0

[Event "41st OBSenEM 2025"]
[Site "Berlin"]
[Date "2025.02.11"]
[Round "7.3"]
[White "Postler, Reinhard"]
[Black "Jurkatis, Hagen"]
[Result "1-0"]
[Annotator "TA"]
[ECO "C41"]
[WhiteElo "2189"]
[BlackElo "1952"]
[PlyCount "89"]
[EventDate "2025.02.04"]
[EventType "swiss"]
[EventCountry "GER"]
[SourceTitle "playchess.com"]
[Source "ChessBase"]
[SourceQuality "1"]
[TimeControl "40/5400+30:1800+30"]

{[%evp 14,89,19,20,34,29,30,22,33,33,31,17,16,20,25,28,74,58,93,77,92,83,103,118,147,148,154,118,163,162,168,107,163,170,158,122,264,199,252,239,296,311,270,230,321,283,331,189,190,191,188,148,201,196,205,204,188,104,163,139,190,177,342,226,404,403,453,453,453,453,856,851,802,805,809,745,987,743]} 1. e4 {[%emt 0:00:05]} d6 {[%emt 0:00:03]} 2. d4 {[%emt 0:00:11]} Nf6 {[%emt 0:00:02]} 3. Nc3 {[%emt 0:00:14]} e5 {[%emt 0:00:02]} 4. Nf3 {[%emt 0:00:34]} Nbd7 {[%emt 0:00:03]} 5. Be2 {[%emt 0:01:06]} Be7 {[%emt 0:00:13]} 6. O-O {[%emt 0:00:19]} O-O {[%emt 0:00:47]} 7. Re1 {[%emt 0:00:17]} c6 {[%emt 0:01:20]} 8. a4 {[%emt 0:00:30]} Re8 {C41: Philidor Defence.} 9. a5 {[%emt 0:00:30]} Qc7 10. Bf1 {[%emt 0:00:30]} Nf8 {The position is equal.} 11. d5 $146 {[%emt 0:00:30]} (11. h3 Ng6 12. g3 h6 13. d5 Bd7 14. a6 b6 15. dxc6 Bxc6 16. Nd5 Nxd5 17. exd5 {½-½ Abella Vazquez,C (2120)-Martin Duque,J (2354) Guimaraes 2nd 2018 (5)}) 11... Ng6 12. Nd2 {[%emt 0:00:30]} Bg4 13. f3 {[%emt 0:00:30]} Bd7 14. Nc4 {[%emt 0:00:30]} Nh5 (14... h6 $11) 15. Be3 {[%emt 0:00:30]} Rf8 16. Bf2 {[%emt 0:00:30]} Nhf4 17. Ne3 {[%emt 0:00:30]} Rfe8 18. a6 {[%emt 0:00:30] White plays on the queen side and is better} Bf8 19. axb7 {[%emt 0:00:30]} Qxb7 20. Ra2 {[%emt 0:00:30]} Be7 21. dxc6 {[%emt 0:00:30]} Bxc6 22. Nf5 {[%emt 0:00:30]} (22. Nc4 $18) 22... Red8 (22... d5 $16) 23. g3 $18 {[%emt 0:00:30]} Ne6 24. Bc4 {[%emt 0:00:30] White is much more active.} Nc5 (24... Nc7 $16) 25. Bd5 {[%emt 0:00:30]} Rd7 {[#]} (25... a5 $142 26. Bxc6 Qxc6) 26. b4 $1 {[%emt 0:00:30][%mdl 512]} Bxd5 (26... Ne6 27. b5) 27. Nxd5 {[%emt 0:00:30]} Ne6 28. c3 {[%emt 0:00:30]} Qc6 29. Qa1 {[%emt 0:00:30]} Nc7 30. Nfe3 {[%emt 0:00:30]} (30. Rxa7 $6 Rxa7 31. Qxa7 Nxd5 32. exd5 Qc8 $18) (30. b5 $142 Qxb5 31. Rb1 (31. Bxa7 $2 Nxd5 32. Bf2 Rxa2 $19)) 30... Bd8 31. Nxc7 {[%emt 0:00:30]} (31. Rxa7 Rxa7 32. Qxa7 Na6 $11) 31... Qxc7 32. Nd5 {[%emt 0:00:30] Dodges Ne7} Qb7 (32... Qc8 $16 33. b5 (33. Bxa7 Qc4 $16) (33. Rxa7 $2 Rdxa7 34. Bxa7 Qb7 $19) 33... Rb8) 33. Rd1 {[%emt 0:00:30]} Ne7 34. Nxe7+ {[%emt 0:00:30]} Bxe7 35. Ra4 {[%emt 0:00:30]} ({White should play} 35. Rd5 $18) 35... Bd8 (35... Rc7 $16) 36. c4 {[%emt 0:00:30]} h6 (36... f5 $16 37. Qb1 (37. exf5 Qxf3 38. c5 Qxf5 $16) 37... a5) 37. Kg2 {[%emt 0:00:30]} Qc6 $2 (37... Bb6 {keeps fighting.} 38. c5 dxc5) 38. Qa2 {[%emt 0:00:30][%cal Oa4a6] Hoping for Ra6!.} (38. Bxa7 Qxc4 39. Bf2 Rb8 $11) (38. Rxa7 $2 {loses.} Rdxa7 39. Bxa7 Bc7 $19 (39... Qxc4 $2 40. Rxd6 Qe2+ 41. Kh3 $19)) 38... Be7 $2 (38... a5 39. b5 (39. bxa5 Ra6 $18) 39... Qb7) 39. b5 {[%emt 0:00:30][%cal Bb4b5,Bb5b6][%mdl 32]} ({And not} 39. Rxa7 Rdxa7 40. Bxa7 Qb7 $17) 39... Qb7 {[#]} 40. b6 $1 {[%emt 0:00:30][%mdl 512] White is clearly winning.} a6 41. Ra1 {[%emt 0:30:30][%cal Ra4a6]} f5 (41... Rdd8 $142 42. Rxa6 Rxa6 43. Qxa6 Qxa6 44. Rxa6 Rb8) 42. Rxa6 {[%emt 0:00:30]} Rad8 43. Ra7 {[%emt 0:00:30]} Qc8 44. Rxd7 {[%emt 0:00:30]} Rxd7 45. c5+ {[%emt 0:00:30] Weighted Error Value: White=0.22 (precise) /Black=0.64  Mistake:       	White=3     	Black=10     Inaccurate:     	White=1     	Black=3      OK:         	White=15    	Black=9      Best:        	White=2     	---} 1-0

[Event "41st OBSenEM 2025"]
[Site "Berlin"]
[Date "2025.02.11"]
[Round "7.4"]
[White "Ahlberg, Matthias"]
[Black "Hildebrand, Gerald"]
[Result "1-0"]
[Annotator "NA RC"]
[ECO "B95"]
[WhiteElo "2067"]
[BlackElo "2016"]
[PlyCount "27"]
[EventDate "2025.02.04"]
[EventType "swiss"]
[EventCountry "GER"]
[SourceTitle "playchess.com"]
[Source "ChessBase"]
[SourceQuality "1"]
[TimeControl "40/5400+30:1800+30"]

1. e4 {[%emt 0:00:02]} c5 {[%emt 0:00:09]} 2. Nf3 {[%emt 0:00:09]} d6 {[%emt 0:00:05]} 3. Nc3 {[%emt 0:00:12]} Nf6 {[%emt 0:00:52]} 4. d4 {[%emt 0:00:38]} cxd4 {[%emt 0:00:09]} 5. Nxd4 {[%emt 0:00:03]} a6 {[%emt 0:00:11]} 6. Bg5 {[%emt 0:00:48]} e6 {[%emt 0:01:17]} 7. Be2 Be7 {[%emt 0:00:30]} 8. Qd2 b5 {[%emt 0:00:30]} 9. Bf3 Bb7 {[%emt 0:00:30]} 10. Rd1 Qc7 {[%emt 0:00:30]} 11. Bxf6 Bxf6 {[%emt 0:00:30]} 12. Ndxb5 axb5 {[%emt 0:00:30]} 13. Nxb5 Qb6 {[%emt 0:00:30]} 14. Nxd6+ 1-0